fUSD/lending_fUSD_20250514
["ID","MTS","AMOUNT","RATE_DAILY","PERIOD"]
[361011643,1747203046732,-183.133,0.00010993,2]
[361011644,1747203046741,-931.0,0.00010993,2]
[361011645,1747203046752,-367.961,0.00010993,2]
[361011646,1747203046762,-798.0,0.00010993,2]
[361011647,1747203046771,-628.0,0.00010993,2]
[361011648,1747203046780,-251.585,0.00010993,2]
[361011649,1747203046790,-500.0,0.00010997,2]
[361011650,1747203046799,-500.0,0.00010997,2]
[361011651,1747203046808,-500.0,0.00010997,2]
[361011652,1747203046817,-530.09124992,0.00010997,2]
[361011653,1747203046827,-1867.69,0.00010997,2]
[361011654,1747203046836,-1617.1972654,0.00010998,2]
[361011655,1747203046846,-16134.7672055,0.00010998,2]
[361011656,1747203046855,-13937.9773285,0.00010998,2]
[361011657,1747203046867,-49908.2797911,0.00010998,2]
[361011658,1747203046888,-43757.72139114,0.00010998,2]
[361011659,1747203046899,-4507.12266856,0.00010998,2]
[361011660,1747203046909,-262.70028788,0.00010998,2]
[361011661,1747203046928,-58.49018942,0.00010998,2]
[361011662,1747203046938,-300.0,0.00010999,2]
[361011663,1747203046948,-300.0,0.00010999,2]
[361011664,1747203046958,-164.49926726,0.00010999,2]
[361011665,1747203046968,-522.03634831,0.00010999,2]
[361011666,1747203046982,-665.60419504,0.00010999,2]
[361011667,1747203046994,-334.39580496,0.00010999,2]
[361011668,1747203047004,-445.61515128,0.00010999,2]
[361011669,1747203047014,-349.26792153,0.00010999,2]
[361011670,1747203047026,-150.73207847,0.00010999,2]
[361011671,1747203047036,-500.0,0.00010999,2]
[361011672,1747203047046,-500.0,0.00010999,2]
[361011673,1747203047056,-357.87,0.00010999,2]
[361011674,1747203047066,-500.0,0.00010999,2]
[361011675,1747203047075,-502.98838212,0.00010999,2]
[361011676,1747203047085,-1867.69,0.00010999,2]
[361011677,1747203047094,-1867.69,0.00010999,2]
[361011678,1747203047103,-1867.69,0.00010999,2]
[361011679,1747203047113,-1867.69,0.00010999,2]
[361011680,1747203047122,-1867.69,0.00010999,2]
[361011681,1747203047131,-1867.69,0.00010999,2]
[361011682,1747203047141,-1867.69,0.00010999,2]
[361011683,1747203047151,-1867.69,0.00010999,2]
[361011684,1747203047160,-1867.69,0.00010999,2]
[361011685,1747203047170,-1867.69,0.00010999,2]
[361011686,1747203047179,-1867.69,0.00010999,2]
[361011687,1747203047189,-1867.69,0.00010999,2]
[361011688,1747203047199,-1867.69,0.00010999,2]
[361011689,1747203047210,-1867.69,0.00010999,2]
[361011690,1747203047219,-1867.69,0.00010999,2]
[361011691,1747203047229,-1867.69,0.00010999,2]
[361011692,1747203047239,-1867.69,0.00010999,2]
[361011693,1747203047248,-1867.69,0.00010999,2]
[361011694,1747203047259,-1867.69,0.00010999,2]
[361011695,1747203047269,-834.28038548,0.00010999,2]
[361011696,1747203047283,-1033.40961452,0.00010999,2]
[361011697,1747203047292,-1177.31149514,0.00010999,2]
[361011698,1747203047304,-690.38790595,0.00010999,2]
[361011699,1747203047313,-408.57229255,0.00010999,2]
[361011700,1747203047323,-300.0,0.00010999,2]
[361011701,1747203047332,-723.0,0.00010999,2]
[361011702,1747203047341,-1221640.64476677,0.00011,2]
[361011703,1747203047351,-224214.46455354,0.00011,2]
[361011704,1747203047360,-500.0,0.00011,2]
[361011705,1747203047370,-150.0,0.00011,2]
[361011706,1747203047379,-569.94228127,0.00011,2]
[361011707,1747203047389,-2072563.27505615,0.00011,2]
[361011708,1747203047427,-609.5,0.00011,2]
[361011709,1747203047439,-2597.75,0.00011,2]
[361011710,1747203048516,-400.0,0.00010958,2]
[361011711,1747203048526,-400.0,0.00010958,2]
[361011712,1747203048536,-400.0,0.00010958,2]
[361011713,1747203048545,-174.5654,0.00010958,2]
[361011714,1747203048556,-225.4346,0.00010958,2]
[361011715,1747203048566,-400.0,0.00010958,2]
[361011716,1747203048575,-2019.036768,0.00011,2]
[361011717,1747203048586,-432.06190101,0.00011,2]
[361011718,1747203048598,-565064.89234854,0.00011,2]
[361011719,1747203048607,-152.07577218,0.00011,2]
[361011720,1747203048616,-1320778.96769984,0.00011,2]
[361011721,1747203048627,-177883.12698555,0.00011,2]
[361011722,1747203048645,-962.00815878,0.00011,2]
[361011723,1747203048657,-2088.9,0.00011,2]
[361011724,1747203048668,-22485.96120294,0.00011,2]
[361011725,1747203048678,-2239.10260521,0.00011,2]
[361011726,1747203049222,-1849.36583318,0.00011,2]
[361011727,1747203049240,-1859.1,0.00011,2]
[361011728,1747203236550,450.0,0.0001,2]
[361011729,1747203508505,517.66,8.219e-05,2]
[361011730,1747203625126,150.0,0.00010051,7]
[361011761,1747204232509,-1000.0,0.00010019,2]
[361011762,1747204232519,-218.6942744,0.00010044,2]
[361011763,1747204232532,-277.4257256,0.00010044,2]
[361011764,1747204232542,-139.69624274,0.00010068,2]
[361011770,1747204240614,-35.81375726,0.00010068,2]
[361011771,1747204240623,-517.66,0.00010481,2]
[361011772,1747204240633,-300.0,0.00010857,2]
[361011773,1747204240643,-146.52624274,0.00010857,2]
[361011774,1747204240769,-3.47375726,0.00010857,2]
[361011775,1747204240779,-1200.0,0.00010857,2]
[361011776,1747204240789,-198.0,0.00010857,2]
[361011777,1747204240799,-17658.8286,0.00010858,2]
[361011778,1747204240808,-7517.4767,0.00010858,2]
[361011779,1747204240819,-2059.2124,0.00010858,2]
[361011780,1747204240830,-226.7489,0.00010858,2]
[361011781,1747204240841,-173.22364019,0.000109,2]
[361011782,1747204240851,-879.00445684,0.00010906,2]
[361011783,1747204240861,-420.9366923,0.00010944,2]
[361011784,1747204240870,-207.4,0.00010951,2]
[361011785,1747204240880,-400.0,0.00010958,2]
[361011786,1747204240890,-400.0,0.00010958,2]
[361011787,1747204240900,-936.75,0.00010958,2]
[361011788,1747204240909,-400.00540297,0.00010958,2]
[361011789,1747204240919,-400.0,0.00010958,2]
[361011790,1747204240928,-404.87886899,0.00010958,2]
[361011791,1747204240938,-400.0,0.00010958,2]
[361011792,1747204240948,-400.0,0.00010958,2]
[361011793,1747204240957,-400.0,0.00010958,2]
[361011794,1747204240967,-400.0,0.00010958,2]
[361011795,1747204240977,-400.0,0.00010958,2]
[361011796,1747204240987,-400.0,0.00010958,2]
[361011797,1747204240996,-400.0,0.00010958,2]
[361011798,1747204241006,-563.13,0.00010958,2]
[361011799,1747204241016,-400.0,0.00010958,2]
[361011800,1747204241025,-400.0,0.00010958,2]
[361011801,1747204241035,-400.0,0.00010958,2]
[361011802,1747204241044,-400.0,0.00010958,2]
[361011803,1747204241053,-186.36845443,0.00010958,2]
[361011804,1747204241062,-400.0,0.00010958,2]
[361011805,1747204241072,-400.0,0.00010958,2]
[361011806,1747204241081,-164.21396767,0.00010958,2]
[361011807,1747204241091,-400.0,0.00010958,2]
[361011808,1747204241100,-400.0,0.00010958,2]
[361011809,1747204241110,-400.0,0.00010958,2]
[361011810,1747204241120,-437.07,0.00010958,2]
[361011811,1747204241130,-679.32,0.00010958,2]
[361011812,1747204241139,-410.28223363,0.00010958,2]
[361011813,1747204241149,-400.0,0.00010958,2]
[361011814,1747204241158,-950.91,0.00010958,2]
[361011815,1747204241169,-400.0,0.00010958,2]
[361011816,1747204241178,-400.0,0.00010958,2]
[361011817,1747204241188,-405.01182353,0.00010958,2]
[361011818,1747204241198,-400.0,0.00010958,2]
[361011819,1747204241207,-401.41826186,0.00010958,2]
[361011820,1747204241217,-400.0,0.00010958,2]
[361011821,1747204241227,-400.0,0.00010958,2]
[361011822,1747204241236,-400.0,0.00010958,2]
[361011823,1747204241245,-729.24,0.00010958,2]
[361011824,1747204241255,-400.0,0.00010958,2]
[361011825,1747204241265,-204.96628974,0.00010958,2]
[361011826,1747204241275,-400.0,0.00010958,2]
[361011827,1747204241284,-400.0,0.00010958,2]
[361011828,1747204241294,-400.0,0.00010958,2]
[361011829,1747204241303,-400.0,0.00010958,2]
[361011830,1747204241312,-400.0,0.00010958,2]
[361011831,1747204241322,-400.0,0.00010958,2]
[361011832,1747204241331,-334.39342604,0.00010958,2]
[361011833,1747204241341,-400.0,0.00010958,2]
[361011834,1747204241351,-400.0,0.00010958,2]
[361011835,1747204241360,-400.0,0.00010958,2]
[361011836,1747204241370,-400.0,0.00010958,2]
[361011837,1747204241379,-400.0,0.00010958,2]
[361011838,1747204241388,-624.32,0.00010958,2]
[361011839,1747204241398,-400.0,0.00010958,2]
[361011840,1747204241408,-400.0,0.00010958,2]
[361011841,1747204241417,-489.84,0.00010958,2]
[361011842,1747204241427,-402.2998408,0.00010958,2]
[361011843,1747204241439,-406.15183363,0.00010958,2]
[361011844,1747204241449,-602.64,0.00010958,2]
[361011845,1747204241459,-400.0,0.00010958,2]
[361011846,1747204241469,-400.0,0.00010958,2]
[361011847,1747204241478,-400.0,0.00010958,2]
[361011848,1747204241489,-474.8,0.00010958,2]
[361011849,1747204241499,-400.0,0.00010958,2]
[361011850,1747204241671,-400.0,0.00010958,2]
[361011851,1747204241694,-400.0,0.00010958,2]
[361011852,1747204241703,-611.35,0.00010958,2]
[361011853,1747204241713,-400.0,0.00010958,2]
[361011854,1747204241723,-400.0,0.00010958,2]
[361011855,1747204241732,-400.0,0.00010958,2]
[361011856,1747204241742,-400.0,0.00010958,2]
[361011857,1747204241751,-400.0,0.00010958,2]
[361011858,1747204241761,-637.06,0.00010958,2]
[361011859,1747204241771,-400.0,0.00010958,2]
[361011860,1747204241781,-400.0,0.00010958,2]
[361011861,1747204241790,-400.0,0.00010958,2]
[361011862,1747204241800,-400.0,0.00010958,2]
[361011863,1747204241810,-551.01,0.00010958,2]
[361011864,1747204241819,-401.75386184,0.00010958,2]
[361011865,1747204241828,-400.0,0.00010958,2]
[361011866,1747204241838,-400.0,0.00010958,2]
[361011867,1747204241847,-400.0,0.00010958,2]
[361011868,1747204241857,-400.0,0.00010958,2]
[361011869,1747204241866,-400.0,0.00010958,2]
[361011870,1747204241876,-1470.08,0.00010958,2]
[361011871,1747204241886,-400.0,0.00010958,2]
[361011872,1747204241896,-400.0,0.00010958,2]
[361011873,1747204241906,-400.0,0.00010958,2]
[361011874,1747204241915,-400.0,0.00010958,2]
[361011875,1747204241925,-400.0,0.00010958,2]
[361011876,1747204241934,-400.0,0.00010958,2]
[361011877,1747204241944,-400.0,0.00010958,2]
[361011878,1747204241954,-400.0,0.00010958,2]
[361011879,1747204241963,-704.41,0.00010958,2]
[361011880,1747204241972,-400.0,0.00010958,2]
[361011881,1747204241982,-400.0,0.00010958,2]
[361011882,1747204241992,-400.0,0.00010958,2]
[361011883,1747204242001,-155.4402479,0.00010958,2]
[361011884,1747204242011,-1274.23,0.00010958,2]
[361011885,1747204242021,-400.0,0.00010958,2]
[361011886,1747204242031,-400.0,0.00010958,2]
[361011887,1747204242040,-400.0,0.00010958,2]
[361011888,1747204242050,-400.0,0.00010958,2]
[361011889,1747204242059,-402.5998706,0.00010958,2]
[361011890,1747204242069,-400.0,0.00010958,2]
[361011891,1747204242079,-400.0,0.00010958,2]
[361011892,1747204242089,-400.0,0.00010958,2]
[361011893,1747204242098,-400.0,0.00010958,2]
[361011894,1747204242107,-460.40276636,0.00010958,2]
[361011895,1747204242116,-400.0,0.00010958,2]
[361011896,1747204242126,-402.16339372,0.00010958,2]
[361011897,1747204242135,-424.27217099,0.00010958,2]
[361011898,1747204242146,-400.0,0.00010958,2]
[361011899,1747204242156,-400.0,0.00010958,2]
[361011900,1747204242165,-230.45052758,0.00010958,2]
[361011901,1747204242175,-405.61,0.00010958,2]
[361011902,1747204242184,-400.0,0.00010958,2]
[361011903,1747204242194,-400.0,0.00010958,2]
[361011904,1747204242204,-400.0,0.00010958,2]
[361011905,1747204242213,-406.32702658,0.00010958,2]
[361011906,1747204242223,-232.14571953,0.00010958,2]
[361011907,1747204242233,-400.0,0.00010958,2]
[361011908,1747204242243,-400.0,0.00010958,2]
[361011909,1747204242252,-402.94204606,0.00010958,2]
[361011910,1747204242261,-400.0,0.00010958,2]
[361011911,1747204242272,-400.0,0.00010958,2]
[361011912,1747204242282,-404.72053079,0.00010958,2]
[361011913,1747204242294,-641.3,0.00010958,2]
[361011914,1747204242305,-400.0,0.00010958,2]
[361011915,1747204242314,-400.0,0.00010958,2]
[361011916,1747204242324,-400.0,0.00010958,2]
[361011917,1747204242333,-400.0,0.00010958,2]
[361011918,1747204242343,-400.0,0.00010958,2]
[361011919,1747204242352,-400.0,0.00010958,2]
[361011920,1747204242362,-589.76,0.00010958,2]
[361011921,1747204242372,-400.0,0.00010958,2]
[361011922,1747204242381,-400.0,0.00010958,2]
[361011923,1747204242391,-400.0,0.00010958,2]
[361011924,1747204242402,-434.87,0.00010958,2]
[361011925,1747204242411,-400.0,0.00010958,2]
[361011926,1747204242421,-400.0,0.00010958,2]
[361011927,1747204242430,-376.54218841,0.00010958,2]
[361011928,1747204242444,-400.0,0.00010958,2]
[361011929,1747204242454,-417.06,0.00010958,2]
[361011930,1747204242464,-400.0,0.00010958,2]
[361011931,1747204242475,-400.0,0.00010958,2]
[361011932,1747204242484,-400.0,0.00010958,2]
[361011933,1747204242494,-400.0,0.00010958,2]
[361011934,1747204242503,-596.03,0.00010958,2]
[361011935,1747204242514,-400.0,0.00010958,2]
[361011936,1747204242524,-405.23112452,0.00010958,2]
[361011937,1747204242534,-400.0,0.00010958,2]
[361011938,1747204242543,-400.0,0.00010958,2]
[361011939,1747204242553,-400.0,0.00010958,2]
[361011940,1747204242563,-400.0,0.00010958,2]
[361011941,1747204242572,-158.84315963,0.00010958,2]
[361011942,1747204242582,-400.0,0.00010958,2]
[361011943,1747204242591,-400.0,0.00010958,2]
[361011944,1747204242600,-403.75834098,0.00010958,2]
[361011945,1747204242610,-402.22508709,0.00010958,2]
[361011946,1747204242620,-400.0,0.00010958,2]
[361011947,1747204242630,-400.0,0.00010958,2]
[361011948,1747204242639,-400.0,0.00010958,2]
[361011949,1747204242649,-400.0,0.00010958,2]
[361011950,1747204242658,-532.02447264,0.00010958,2]
[361011951,1747204242668,-400.0,0.00010958,2]
[361011952,1747204242677,-400.0,0.00010958,2]
[361011953,1747204242686,-400.0,0.00010958,2]
[361011954,1747204242695,-451.99959892,0.00010958,2]
[361011955,1747204242704,-400.0,0.00010958,2]
[361011956,1747204242714,-402.93877075,0.00010958,2]
[361011957,1747204242723,-400.0,0.00010958,2]
[361011958,1747204242732,-400.0,0.00010958,2]
[361011959,1747204242742,-491.6977854,0.00010958,2]
[361011960,1747204242751,-400.0,0.00010958,2]
[361011961,1747204242760,-400.0,0.00010958,2]
[361011962,1747204242770,-400.0,0.00010958,2]
[361011963,1747204242779,-400.0,0.00010958,2]
[361011964,1747204242788,-153.602446,0.00010958,2]
[361011965,1747204242797,-1658.02642,0.00010958,2]
[361011966,1747204242807,-529.61027887,0.00010958,2]
[361011967,1747204242816,-400.0,0.00010958,2]
[361011968,1747204242825,-400.0,0.00010958,2]
[361011969,1747204242835,-529.76059671,0.00010958,2]
[361011970,1747204242844,-400.0,0.00010958,2]
[361011971,1747204242854,-416.492402,0.00010958,2]
[361011972,1747204242863,-421.32872662,0.00010958,2]
[361011973,1747204242873,-400.0,0.00010958,2]
[361011974,1747204242883,-406.18494381,0.00010958,2]
[361011975,1747204242892,-400.0,0.00010958,2]
[361011976,1747204242901,-455.3770939,0.00010958,2]
[361011977,1747204242911,-390.0,0.00010958,2]
[361011978,1747204242921,-220.3248743,0.00010958,2]
[361011979,1747204242930,-400.0,0.00010958,2]
[361011980,1747204242940,-400.0,0.00010958,2]
[361011981,1747204242949,-403.64491453,0.00010958,2]
[361011982,1747204242959,-400.0,0.00010958,2]
[361011983,1747204242968,-250.64306722,0.00010958,2]
[361011984,1747204242979,-3373.664935,0.00010958,2]
[361011985,1747204242989,-400.0,0.00010958,2]
[361011986,1747204242998,-400.0,0.00010958,2]
[361011987,1747204243009,-400.0,0.00010958,2]
[361011988,1747204243019,-400.0,0.00010958,2]
[361011989,1747204243031,-403.11483092,0.00010958,2]
[361011990,1747204243040,-500.0,0.00010958,2]
[361011991,1747204243050,-400.0,0.00010958,2]
[361011992,1747204243059,-400.0,0.00010958,2]
[361011993,1747204243068,-519.0380317,0.00010958,2]
[361011994,1747204243078,-400.0,0.00010958,2]
[361011995,1747204243087,-400.0,0.00010958,2]
[361011996,1747204243097,-400.0,0.00010958,2]
[361011997,1747204243107,-400.0,0.00010958,2]
[361011998,1747204243116,-1391.86,0.00010958,2]
[361011999,1747204243126,-400.0,0.00010958,2]
[361012000,1747204243135,-400.0,0.00010958,2]
[361012001,1747204243144,-400.0,0.00010958,2]
[361012002,1747204243154,-400.0,0.00010958,2]
[361012003,1747204243163,-400.0,0.00010958,2]
[361012005,1747204243173,-400.0,0.00010958,2]
[361012007,1747204243183,-400.0,0.00010958,2]
[361012008,1747204243193,-400.0,0.00010958,2]
[361012009,1747204243203,-400.0,0.00010958,2]
[361012010,1747204243213,-420.95475287,0.00010958,2]
[361012011,1747204243223,-400.0,0.00010958,2]
[361012012,1747204243235,-405.71181614,0.00010958,2]
[361012013,1747204243246,-444.88,0.00010958,2]
[361012014,1747204243255,-526.97,0.00010958,2]
[361012015,1747204243264,-400.0,0.00010958,2]
[361012016,1747204243274,-400.0,0.00010958,2]
[361012017,1747204243283,-400.0,0.00010958,2]
[361012018,1747204243293,-818.34,0.00010958,2]
[361012019,1747204243302,-400.0,0.00010958,2]
[361012020,1747204243312,-730.17,0.00010958,2]
[361012021,1747204243321,-411.90553546,0.00010958,2]
[361012022,1747204243331,-400.0,0.00010958,2]
[361012023,1747204243341,-400.0,0.00010958,2]
[361012024,1747204243350,-411.87312988,0.00010958,2]
[361012025,1747204243360,-400.39573274,0.00010958,2]
[361012026,1747204243370,-400.0,0.00010958,2]
[361012027,1747204243379,-400.0,0.00010958,2]
[361012029,1747204243389,-704.59,0.00010958,2]
[361012030,1747204243398,-188.52167298,0.00010958,2]
[361012031,1747204243407,-400.0,0.00010958,2]
[361012032,1747204243417,-400.0,0.00010958,2]
[361012033,1747204243427,-400.0,0.00010958,2]
[361012034,1747204243439,-449.48,0.00010958,2]
[361012035,1747204243449,-400.0,0.00010958,2]
[361012036,1747204243459,-400.0,0.00010958,2]
[361012037,1747204243469,-400.0,0.00010958,2]
[361012038,1747204243480,-400.0,0.00010958,2]
[361012039,1747204243490,-400.0,0.00010958,2]
[361012040,1747204243499,-164.17884031,0.00010958,2]
[361012041,1747204243509,-422.02,0.00010958,2]
[361012042,1747204243521,-400.0,0.00010958,2]
[361012043,1747204243532,-400.0,0.00010958,2]
[361012044,1747204243542,-400.0,0.00010958,2]
[361012045,1747204243552,-400.0,0.00010958,2]
[361012046,1747204243562,-400.0,0.00010958,2]
[361012047,1747204243572,-408.62339789,0.00010958,2]
[361012048,1747204243582,-400.0,0.00010958,2]
[361012049,1747204243592,-400.0,0.00010958,2]
[361012050,1747204243602,-401.02999266,0.00010958,2]
[361012051,1747204243612,-400.0,0.00010958,2]
[361012052,1747204243621,-575.45,0.00010958,2]
[361012053,1747204243631,-483.7297181,0.00010958,2]
[361012054,1747204243640,-400.0,0.00010958,2]
[361012055,1747204243650,-400.25758975,0.00010958,2]
[361012056,1747204243659,-400.0,0.00010958,2]
[361012057,1747204243669,-400.0,0.00010958,2]
[361012058,1747204243678,-400.0,0.00010958,2]
[361012059,1747204243688,-601.79,0.00010958,2]
[361012060,1747204243698,-400.0,0.00010958,2]
[361012061,1747204243707,-1474.78,0.00010958,2]
[361012062,1747204243717,-400.0,0.00010958,2]
[361012063,1747204243726,-400.0,0.00010958,2]
[361012064,1747204243736,-400.0,0.00010958,2]
[361012065,1747204243746,-400.0,0.00010958,2]
[361012066,1747204243756,-400.0,0.00010958,2]
[361012067,1747204243765,-400.0,0.00010958,2]
[361012068,1747204243775,-400.0,0.00010958,2]
[361012069,1747204243784,-400.0,0.00010958,2]
[361012070,1747204243794,-400.0,0.00010958,2]
[361012071,1747204243803,-400.0,0.00010958,2]
[361012072,1747204243812,-400.0,0.00010958,2]
[361012073,1747204243822,-400.0,0.00010958,2]
[361012074,1747204243831,-400.0,0.00010958,2]
[361012075,1747204243841,-400.0,0.00010958,2]
[361012076,1747204243850,-413.5413595,0.00010958,2]
[361012077,1747204243859,-400.0,0.00010958,2]
[361012078,1747204243869,-232.01542962,0.00010958,2]
[361012085,1747204243878,-400.0,0.00010958,2]
[361012086,1747204244020,-976.83,0.00010958,2]
[361012087,1747204244030,-400.0,0.00010958,2]
[361012088,1747204244039,-757.32,0.00010958,2]
[361012089,1747204244049,-400.0,0.00010958,2]
[361012090,1747204244058,-400.0,0.00010958,2]
[361012091,1747204244067,-246.09529818,0.00010958,2]
[361012092,1747204244076,-400.0,0.00010958,2]
[361012094,1747204244086,-400.0,0.00010958,2]
[361012096,1747204244096,-400.0,0.00010958,2]
[361012098,1747204244105,-400.0,0.00010958,2]
[361012100,1747204244114,-258.40400421,0.00010958,2]
[361012102,1747204244124,-400.0,0.00010958,2]
[361012103,1747204244133,-400.0,0.00010958,2]
[361012104,1747204244142,-407.58,0.00010958,2]
[361012105,1747204244151,-400.0,0.00010958,2]
[361012106,1747204244160,-400.0,0.00010958,2]
[361012107,1747204244169,-400.0,0.00010958,2]
[361012108,1747204244178,-400.0,0.00010958,2]
[361012109,1747204244187,-1017.55,0.00010958,2]
[361012110,1747204244196,-400.0,0.00010958,2]
[361012111,1747204244204,-400.0,0.00010958,2]
[361012112,1747204244213,-400.0,0.00010958,2]
[361012113,1747204244223,-400.0,0.00010958,2]
[361012114,1747204244232,-400.0,0.00010958,2]
[361012115,1747204244242,-1278.29,0.00010958,2]
[361012116,1747204244250,-456.77,0.00010958,2]
[361012117,1747204244259,-821.99,0.00010958,2]
[361012118,1747204244269,-400.0,0.00010958,2]
[361012119,1747204244278,-448.79,0.00010958,2]
[361012120,1747204244287,-400.0,0.00010958,2]
[361012121,1747204244296,-400.0,0.00010958,2]
[361012122,1747204244306,-400.0,0.00010958,2]
[361012123,1747204244315,-400.0,0.00010958,2]
[361012124,1747204244324,-450.62,0.00010958,2]
[361012125,1747204244334,-416.53,0.00010958,2]
[361012126,1747204244343,-418.26,0.00010958,2]
[361012127,1747204244352,-686.88,0.00010958,2]
[361012128,1747204244362,-400.0,0.00010958,2]
[361012129,1747204244372,-400.0,0.00010958,2]
[361012130,1747204244382,-500.3,0.00010958,2]
[361012131,1747204244391,-400.0,0.00010958,2]
[361012132,1747204244401,-1592.53,0.00010958,2]
[361012133,1747204244410,-400.0,0.00010958,2]
[361012134,1747204244420,-400.0,0.00010958,2]
[361012135,1747204244429,-400.0,0.00010958,2]
[361012136,1747204244443,-406.57608926,0.00010958,2]
[361012137,1747204244452,-400.0,0.00010958,2]
[361012138,1747204244461,-533.66,0.00010958,2]
[361012139,1747204244471,-644.23,0.00010958,2]
[361012140,1747204244480,-440.34,0.00010958,2]
[361012141,1747204244492,-400.0,0.00010958,2]
[361012142,1747204244502,-400.0,0.00010958,2]
[361012143,1747204244512,-400.0,0.00010958,2]
[361012144,1747204244522,-1229.31,0.00010958,2]
[361012145,1747204244532,-400.0,0.00010958,2]
[361012146,1747204244542,-400.0,0.00010958,2]
[361012147,1747204244552,-919.73,0.00010958,2]
[361012148,1747204244562,-400.0,0.00010958,2]
[361012149,1747204244572,-400.0,0.00010958,2]
[361012150,1747204244581,-415.0074165,0.00010958,2]
[361012151,1747204244590,-714.77,0.00010958,2]
[361012152,1747204244601,-400.0,0.00010958,2]
[361012153,1747204244610,-514.75,0.00010958,2]
[361012154,1747204244619,-400.0,0.00010958,2]
[361012155,1747204244629,-400.0,0.00010958,2]
[361012156,1747204244639,-944.54,0.00010958,2]
[361012157,1747204244648,-459.08,0.00010958,2]
[361012158,1747204244658,-435.83,0.00010958,2]
[361012159,1747204244667,-1381.85,0.00010958,2]
[361012160,1747204244677,-782.6,0.00010958,2]
[361012161,1747204244686,-400.0,0.00010958,2]
[361012162,1747204244695,-424.97,0.00010958,2]
[361012163,1747204244704,-418.93,0.00010958,2]
[361012164,1747204244714,-400.0,0.00010958,2]
[361012165,1747204244723,-400.60212593,0.00010958,2]
[361012166,1747204244733,-400.0,0.00010958,2]
[361012167,1747204244744,-400.0,0.00010958,2]
[361012168,1747204244753,-400.0,0.00010958,2]
[361012169,1747204244763,-954.91,0.00010958,2]
[361012170,1747204244775,-1407.48,0.00010958,2]
[361012171,1747204244784,-400.0,0.00010958,2]
[361012172,1747204244794,-400.0,0.00010958,2]
[361012173,1747204244805,-400.0,0.00010958,2]
[361012174,1747204244815,-1113.47,0.00010958,2]
[361012175,1747204244824,-400.0,0.00010958,2]
[361012176,1747204244834,-413.60334501,0.00010958,2]
[361012177,1747204244844,-464.29,0.00010958,2]
[361012178,1747204244853,-1024.96,0.00010958,2]
[361012179,1747204244862,-400.0,0.00010958,2]
[361012180,1747204244872,-400.0,0.00010958,2]
[361012181,1747204244881,-747.3,0.00010958,2]
[361012182,1747204244891,-400.0,0.00010958,2]
[361012183,1747204244901,-336.92384514,0.00010958,2]
[361012184,1747204244910,-400.0,0.00010958,2]
[361012185,1747204244920,-400.0,0.00010958,2]
[361012186,1747204244930,-400.0,0.00010958,2]
[361012187,1747204244940,-400.0,0.00010958,2]
[361012188,1747204244950,-714.36,0.00010958,2]
[361012189,1747204244959,-400.0,0.00010958,2]
[361012190,1747204244969,-437.16654255,0.00010958,2]
[361012191,1747204244979,-400.0,0.00010958,2]